Cogmind - Beta 13 @@@ ROGUE MODE // 2024.07.22 @ 23:39:59 Player: Beef Result: Destroyed by Striker with Plasma Lance Performance ------------- Evolutions (8) 4000 Regions Visited (21) 4200 Robots Destroyed (167) 835 Value Destroyed (5572) 5572 Prototype IDs (57) 1140 Alien Tech Used (0) 0 Bonus (4033) 4033 TOTAL SCORE: 19780 Bonus ------- Triggered Max Security 1000 High Alert Combat Kills 450 Follower Combat Kills 14 Aligned with FarCom 300 Met Data Miner 300 Acquired SGEMP 2000 Friendly Fire -31 Cogmind --------- Core Integrity 0/1450 Matter 290/300 Energy 86/100 System Corruption 8% Temperature Cool (0) Movement Flying (40) Location -2/Testing Parts ------- > --- POWER (2) -------- (None) > --- PROPULSION (6) --- Improved Q-thruster > --- UTILITY (12) ----- Advanced Signal Interpreter Experimental Signal Interpreter Advanced Terrain Scan Processor Improved Targeting Computer Advanced Target Analyzer Hacking Suite Advanced Hacking Suite > --- WEAPON (3) ------- Enhanced Force Lance > --- INVENTORY (5) ---- Light Quantum Reactor Improved Antigrav System SGEMP Prototype Peak State ------------ > --- POWER ------------ Micro Antimatter Reactor Micro Antimatter Reactor > --- PROPULSION ------- Improved Antigrav System Q-thruster Electron Diverter Cooled Impulse Thruster Cooled Impulse Thruster Experimental Q-thruster > --- UTILITY ---------- Advanced Heat Sink Advanced Signal Interpreter Advanced Terrain Scan Processor Improved Targeting Computer Improved Targeting Computer Advanced Target Analyzer Core Analyzer Armor Integrity Analyzer Hacking Suite Hacking Suite Advanced Hacking Suite Advanced Hacking Suite > --- WEAPON ----------- Enhanced Force Lance Enhanced Force Lance > --- INVENTORY -------- Armored Medium Treads Improved Antigrav System Improved Antigrav System Thermal Barrier Improved Force Field [Rating: 138] Favorites ----------- Power Angular Momentum Engine Engine Angular Momentum Engine Power Core Light Nuclear Core Reactor Micro Antimatter Reactor Propulsion Aerolev Unit Treads Improved Heavy Siege Treads Leg Biometal Leg Wheel Wheel Hover Unit Aerolev Unit Flight Unit Q-thruster Utility Advanced Terrain Scan Processor Device Improved Terrain Scanner Storage Medium Storage Unit Processor Advanced Terrain Scan Processor Hackware Improved System Shield Protection Experimental Utility Shielding Weapon Railgun Energy Gun AWS/Thermal Energy Cannon Compact HERF Cannon Ballistic Gun Railgun Ballistic Cannon Mini Assault Cannon Launcher Heavy Missile Launcher Special Weapon Advanced Remote Datajack Impact Weapon Impact Mace Slashing Weapon Ripper Piercing Weapon Enhanced Force Lance Build | -11 -10 -10 -10 -9 -8 -8 -7 -7 -7 -6 -6 -6 -6 -5 -5 -4 -4 -3 -3 -2 -2 ------- Run | Yrd Mat Min Exi Min Mat Sto Fac Low Low Fac Low Low Dat Pro Fac Fac Ext Res Arm Res Tes Slots Evolved 16 | . . . . . 4 . 2 . . 2 . . . . 2 2 . 2 . 2 . Power 1 | . . . . . . . . . . . . . . . . . . 1 . . . Propulsion 4 | . . . . . . . 2 . . . . . . . . 2 . . . . . Utility 10 | . . . . . 4 . . . . 2 . . . . 2 . . . . 2 . Weapon 1 | . . . . . . . . . . . . . . . . . . 1 . . . Parts Attached 291 | 6 12 6 1 2 15 22 29 5 . 12 2 5 . 4 23 12 . 61 22 37 15 Power 32 | 1 1 . . . 1 1 1 . . 3 1 1 . 1 4 2 . 7 3 3 2 Engine 16 | 1 1 . . . . . 1 . . 3 1 1 . 1 3 1 . 3 . . . Core 3 | . . . . . 1 1 . . . . . . . . 1 . . . . . . Reactor 13 | . . . . . . . . . . . . . . . . 1 . 4 3 3 2 Propulsion 82 | 2 4 3 . 2 . 7 10 1 . 1 1 1 . 2 4 3 . 17 10 9 5 Treads 8 | . . . . . . 5 . . . . . . . . . . . 3 . . . Leg 8 | . 1 . . . . . . . . . . . . . . . . 7 . . . Wheel 10 | 2 3 3 . 2 . . . . . . . . . . . . . . . . . Hover 32 | . . . . . . 2 10 1 . 1 1 . . 1 2 3 . 2 1 6 2 Flight 24 | . . . . . . . . . . . . 1 . 1 2 . . 5 9 3 3 Utility 116 | 1 4 2 . . 8 8 15 2 . 7 . 1 . . 7 6 . 24 7 20 4 Device 63 | . 2 2 . . 4 3 7 1 . 3 . 1 . . 5 5 . 12 5 11 2 Storage 3 | 1 1 . . . . . . . . . . . . . . . . 1 . . . Processor 26 | . 1 . . . 2 . 6 1 . 2 . . . . 1 1 . 5 . 5 2 Hackware 11 | . . . . . . 1 2 . . . . . . . 1 . . 1 2 4 . Protection 13 | . . . . . 2 4 . . . 2 . . . . . . . 5 . . . Artifact . | . . . . . . . . . . . . . . . . . . . . . . Weapon 61 | 2 3 1 1 . 6 6 3 2 . 1 . 2 . 1 8 1 . 13 2 5 4 Energy Gun 7 | 1 . . 1 . 1 2 . . . . . . . . . . . 2 . . . Energy Cannon 4 | . . . . . . . . . . . . . . . . . . 4 . . . Ballistic Gun 12 | 1 2 1 . . 3 1 . . . . . . . . . . . 4 . . . Ballistic Cannon 4 | . . . . . . . 1 . . . . . . . . . . 3 . . . Launcher 14 | . 1 . . . 2 3 . . . . . 2 . 1 5 . . . . . . Special Weapon 1 | . . . . . . . . . . . . . . . . . . . . 1 . Impact Weapon 4 | . . . . . . . . . . 1 . . . . 2 1 . . . . . Slashing Weapon 6 | . . . . . . . 2 2 . . . . . . 1 . . . 1 . . Piercing Weapon 9 | . . . . . . . . . . . . . . . . . . . 1 4 4 Special Melee Weapon . | . . . . . . . . . . . . . . . . . . . . . . Unidentified Prototypes 21 | . . 1 . . 2 1 1 . . 1 . . . . . 1 . 5 . 4 5 Parts Lost 112 | . 4 1 . . 1 13 6 3 . 2 5 1 . 2 1 2 4 27 10 22 8 Power 11 | . 1 . . . . 1 . . . . 1 . . . . . . 5 . 3 . Propulsion 44 | . 1 1 . . . 3 . 1 . 1 3 . . 1 1 . 2 11 7 9 3 Utility 44 | . 1 . . . 1 6 5 2 . 1 1 1 . 1 . 2 1 4 3 10 5 Weapon 13 | . 1 . . . . 3 1 . . . . . . . . . 1 7 . . . Highest Loss Streak 12 | . 3 1 . . 1 5 3 3 . 2 5 1 . 2 1 2 4 12 7 10 6 To Critical Strikes 3 | . . . . . . 1 . . . . . . . . . . . 2 . . . Average Slot Usage (%) 85 | . 95 99 90 85 91 90 99 93 100 91 84 76 66 64 71 78 87 83 76 80 54 Engine 4 | . 14 14 14 14 . . 6 7 7 6 5 6 6 6 2 3 . 2 . . . Core 1 | . . . . . 8 9 . . . . . . . . 2 . . . . . . Reactor 1 | . . . . . . . . . . . . . . . . 1 5 5 5 4 . Treads 2 | . . . . . . 9 . . . . . . . . . . . 9 . . . Wheel 6 | . 23 27 28 28 18 4 . . . . . . . . . . . . . . . Hover 8 | . . . . . . 4 29 29 30 25 16 13 13 13 12 15 20 1 . 3 4 Flight 3 | . . . . . . . . . . . . . 6 5 2 . . . 22 18 6 Device 10 | . 1 14 14 14 21 12 7 15 23 19 8 6 6 4 4 15 26 11 3 8 2 Storage 6 | . 14 14 14 14 9 9 7 7 7 6 6 6 6 6 5 1 . 2 . . . Processor 19 | . 9 . . . 13 18 20 17 15 16 26 26 26 26 24 22 21 24 31 28 27 Hackware 3 | . . . . . . . 8 . . . . . . . 3 5 5 4 8 8 11 Protection 1 | . . . . . 8 5 . . . 2 6 5 . . . . . 2 . . . Energy Gun 2 | . 12 . 8 14 5 4 2 . . . . . . . . . . . . . . Ballistic Gun 3 | . 12 14 5 . 4 11 . . . . . . . . . . . 6 . . . Launcher 1 | . 3 14 5 . 1 1 . . . . . . . . 7 1 . . . . . Slashing Weapon 1 | . . . . . . . 4 14 15 11 6 4 . . 2 5 4 . . . . Naked Turns . | . . . . . . . . . . . . . . . . . . . . . . Heaviest Build 99 | 11 21 21 24 24 36 40 28 31 31 36 31 35 27 30 37 37 30 99 34 45 23 Greatest Support 225 | 20 20 20 20 22 22 42 33 33 32 33 33 28 28 28 40 62 62 225 48 44 22 Greatest Overweight (x) 7 | . 1 2 1 1 1 3 . 1 . 1 2 1 . 1 1 . . 1 1 1 7 Average Overweight (x) . | . . 1 . 1 1 . . . . . . . . . . . . . . . . Largest Inventory Capacity 15 | 8 10 10 10 10 10 10 10 10 10 10 10 10 10 10 10 10 5 15 5 5 5 Average Capacity 9 | 7 9 10 10 10 10 10 10 10 10 10 10 10 10 10 10 6 5 10 5 5 5 Most Carried 15 | 4 9 10 10 10 10 10 10 10 9 10 10 10 10 10 10 10 5 15 5 5 5 Average Carried 8 | 2 6 8 9 9 9 8 9 9 9 9 8 8 10 9 9 6 5 7 4 4 4 Final Capacity 10 | 8 10 10 10 10 10 10 10 10 10 10 10 10 10 10 10 5 5 5 5 5 5 Final Carried 10 | 4 7 9 10 10 10 10 10 9 9 10 8 10 10 10 10 5 5 5 5 4 4 Class Distribution -------------------- 34% | Mutant 14% | Gunner 12% | Gladiator 10% | Skirmisher 8% | Hacker-Mutant 7% | Scout 6% | Hacker-Sprinter 3% | Hacker-Scout Dominant Class ---------------- Mutant | -10/Materials Mutant | -10/Mines Mutant | -10/Exiles Mutant | -9/Mines Skirmisher | -8/Materials Skirmisher | -8/Storage Hacker-Mutant | -7/Factory Gladiator | -7/Lower Caves Gladiator | -7/Lower Caves Scout | -6/Factory Gladiator | -6/Lower Caves Gladiator | -6/Lower Caves Mutant | -6/Data Miner Mutant | -5/Proximity Caves Mutant | -5/Factory Gladiator | -4/Factory Scavenger-Scout | -4/Extension Gunner | -3/Research Hacker-Scout | -3/Armory Hacker-Sprinter | -2/Research Hacker-Mutant | -2/Testing Resources | -11 -10 -10 -10 -9 -8 -8 -7 -7 -7 -6 -6 -6 -6 -5 -5 -4 -4 -3 -3 -2 -2 ----------- Run | Yrd Mat Min Exi Min Mat Sto Fac Low Low Fac Low Low Dat Pro Fac Fac Ext Res Arm Res Tes Matter Collected 4659 | 213 140 114 73 20 229 539 398 61 18 72 60 48 . 44 432 110 . 1407 18 513 150 Remotely 85 | . . . . . . . . . . . . . . . . . . 85 . . . Salvage Created 6983 | . 307 122 . 97 655 1101 383 140 18 140 230 146 . . 991 515 . 1628 17 493 . Parts 388 | . 23 5 . 6 44 74 26 6 . 11 1 10 . . 38 21 . 87 3 33 . Haulers Intercepted 3 | . . . . . . . . . . . . . . . . 1 . 1 . 1 . Recyclers Shooed 6 | . 2 . . . . . . . . . . . . . 2 2 . . . . . Parts Field Recycled . | . . . . . . . . . . . . . . . . . . . . . . Retrieved Matter . | . . . . . . . . . . . . . . . . . . . . . . Parts Self-Destructed 13 | . . . . . . . . 6 . . . 7 . . . . . . . . . Prevented 1 | . . . . . . . . . . . 1 . . . . . . . . . . Kills | -11 -10 -10 -10 -9 -8 -8 -7 -7 -7 -6 -6 -6 -6 -5 -5 -4 -4 -3 -3 -2 -2 ------- Run | Yrd Mat Min Exi Min Mat Sto Fac Low Low Fac Low Low Dat Pro Fac Fac Ext Res Arm Res Tes Combat Hostiles Destroyed 112 | . 5 5 . 3 21 23 5 3 . 1 3 7 . . 7 4 . 21 1 3 . Melee 14 | . . . . . . . 4 3 . 1 . . . . . 2 . . 1 3 . Guns 54 | . 2 2 . 3 19 15 . . . . . . . . . . . 13 . . . Cannons 9 | . . . . . . . 1 . . . . . . . . . . 8 . . . AOE 30 | . 3 3 . . 2 8 . . . . . 7 . . 7 . . . . . . Classes Destroyed 20 | . 7 1 . 1 1 1 3 . . . 1 . . . . 2 . 2 1 . . Worker 17 | . . 1 . . 1 . 4 . . 1 . . . . 7 1 . 1 . 1 . Builder 12 | . 1 . . . . 3 1 . . 1 . . . . 2 2 . 1 . 1 . Tunneler 2 | . . . . . . . . . . . . . . . . 1 . . . 1 . Hauler 3 | . . . . . . . . . . . . . . . . 1 . 1 . 1 . Recycler 8 | . 1 . . . . . 1 . . . . . . . 5 1 . . . . . Mechanic 2 | . 1 . . . . . . . . . . . . . . . . 1 . . . Operator 5 | . 2 . . . 1 . 1 . . . . . . . . . . 1 . . . Watcher 7 | . 2 . . . . . . . . 1 . . . . . . . 1 . 3 . Swarmer 39 | . 3 3 . . 12 3 . 3 . . 3 7 . . 5 . . . . . . Cutter 2 | . . . . . . . 2 . . . . . . . . . . . . . . Saboteur 1 | . . . . . . . . . . . . . . . . . . . 1 . . Grunt 32 | . 2 2 . 2 6 14 . . . . . . . . 2 1 . 3 . . . Brawler 2 | . . . . . . . . . . . . . . . . . . 2 . . . Duelist 5 | . . . . . . 1 . . . . . . . . . . . 4 . . . Protector 1 | . . . . . . . . . . . . . . . . . . 1 . . . Sentry 9 | . . . . . 3 5 . . . 1 . . . . . . . . . . . Hunter 5 | . . . . . . . 1 . . . . . . . . . . 4 . . . Programmer 15 | . . . . . . . 2 . . . . . . . . 3 . 7 . 3 . Decomposer 1 | . . . . . . . . . . . 1 . . . . . . . . . . Packrat 1 | . . . . . . . . 1 . . . . . . . . . . . . . Samaritan 4 | . . . . . . . . . . . 3 1 . . . . . . . . . Assembled 1 | . . . . 1 . . . . . . . . . . . . . . . . . Best Kill Streak 17 | . 4 3 . 2 6 17 3 3 . 2 2 4 . . 6 2 . 5 1 3 . Combat Bots Only 16 | . 3 3 . 2 6 16 2 3 . 1 2 4 . . 5 2 . 5 1 3 . Max Kills in Single Turn 6 | . 2 2 . 1 2 3 1 1 . 1 1 3 . . 6 1 . 1 1 1 . Gunslinging . | . . . . . . . . . . . . . . . . . . . . . . Exploded 5 | . 2 1 . . 1 3 . . . . . 3 . . 5 . . . . . . Melee 1 | . . . . . . . 1 1 . 1 . . . . . 1 . . 1 1 . Uniques/NPCs Destroyed . | . . . . . . . . . . . . . . . . . . . . . . Combat | -11 -10 -10 -10 -9 -8 -8 -7 -7 -7 -6 -6 -6 -6 -5 -5 -4 -4 -3 -3 -2 -2 -------- Run | Yrd Mat Min Exi Min Mat Sto Fac Low Low Fac Low Low Dat Pro Fac Fac Ext Res Arm Res Tes Hostile Shots Fired 1485 | . 25 14 . 4 56 174 40 20 . 45 34 31 . 16 17 40 24 537 123 192 93 Missed 514 | . 7 6 . 1 19 45 12 3 . 19 6 16 . 7 10 13 7 137 70 90 46 Damage Taken 16956 | . 278 112 . 59 436 2041 690 266 . 145 440 127 . 269 123 452 547 6728 746 2352 1145 Core 3558 | . 16 19 . 45 24 202 104 16 . 39 83 22 . 39 35 169 38 1002 169 905 631 Absorbed by Shields 1580 | . . . . . 36 . . . . 50 . 8 . 15 . . . 1392 5 74 . Reduced by Siege Mode 919 | . . . . . . . . . . . . . . . . . . 919 . . . Redirected to Shielding 224 | . . . . . . 34 . . . . . . . . . . . 190 . . . Ignored by Resistances 69 | . . . . . . . . . . . . . . . . 69 . . . . . Regen/Repaired (Parts) 132 | . . . . . 72 . 60 . . . . . . . . . . . . . . Core Remaining (%) 71 | 100 . . . 68 . 58 . . 82 . . . . 78 96 . 82 . 9 . . Volleys Fired 242 | . 37 10 . . 15 70 11 . . . . 3 . 1 8 . . 87 . . . Largest 3 | . 2 2 . . 2 2 2 . . . . 1 . 1 2 . . 3 . . . Hottest 282 | . 70 50 . . 55 81 104 . . . . 39 . 39 78 . . 282 . . . Shots Fired 526 | . 71 14 . 7 70 106 12 . . . . 3 . 1 12 . . 230 . . . Gun 400 | . 70 10 . 7 67 94 2 . . . . . . . . . . 150 . . . Cannon 90 | . . . . . . . 10 . . . . . . . . . . 80 . . . Launcher 36 | . 1 4 . . 3 12 . . . . . 3 . 1 12 . . . . . . Special . | . . . . . . . . . . . . . . . . . . . . . . Kinetic 307 | . 33 10 . . 15 73 10 . . . . . . . . . . 166 . . . Thermal 93 | . . . . 7 52 1 2 . . . . . . . . . . 31 . . . Explosive 27 | . 1 4 . . 3 3 . . . . . 3 . 1 12 . . . . . . Electromagnetic 99 | . 37 . . . . 29 . . . . . . . . . . . 33 . . . Robot Hit Streak 29 | . 10 3 . 3 8 12 2 . . . . 5 . . 7 . . 29 . . . Robot Miss Streak 7 | . 4 2 . 4 3 7 4 . . . . . . . . . . 3 . . . Penetration Max 2 | . . . . . . . . . . . . . . . . . . 2 . . . Secondary Targets 3 | . . . . . . 2 . . . . . . . . . . . 1 . . . Max Gunslinging Chain 1 | . . . . . . 1 . . . . . . . . . . . 1 . . . Autonomous 60 | . . . . 7 53 . . . . . . . . . . . . . . . . Shots Hit Robots 464 | . 34 6 . 4 50 71 21 8 1 12 10 4 . . 20 29 . 174 . 20 . Core Hits 241 | . 18 7 . 3 29 48 10 4 . 5 1 7 . . 25 7 . 69 . 8 . Critical Kills . | . . . . . . . . . . . . . . . . . . . . . . Critical Parts Destroyed 9 | . . . . . 1 . . . . . 2 . . . 2 2 . 2 . . . Critical Strikes 19 | . . . . . 1 . . . . 1 2 . . . 2 3 . 6 . 4 . Destroy 3 | . . . . . 1 . . . . . . . . . . . . 2 . . . Blast 3 | . . . . . . . . . . . . . . . . . . 3 . . . Corrupt 1 | . . . . . . . . . . . . . . . . . . 1 . . . Smash 6 | . . . . . . . . . . . 2 . . . 2 2 . . . . . Sever 2 | . . . . . . . . . . 1 . . . . . 1 . . . . . Impale 4 | . . . . . . . . . . . . . . . . . . . . 4 . Melee Attacks 302 | . . . . . . . 51 15 1 22 25 8 . . 18 54 1 2 12 88 5 Thermal 1 | . . . . . . . . . . . . . . . . . . . 1 . . Impact 67 | . . . . . . . . . . 2 20 7 . . 4 32 . 2 . . . Slashing 130 | . . . . . . . 51 15 1 20 5 1 . . 14 22 1 . . . . Piercing 104 | . . . . . . . . . . . . . . . . . . . 11 88 5 Sneak Attacks 47 | . . . . . . . 8 3 . 2 4 1 . . 14 9 . 1 . 5 . Combat Hostiles . | . . . . . . . . . . . . . . . . . . . . . . Follow-up Attacks 13 | . . . . . . . . 2 . 1 4 . . . . 3 . . . 3 . Damage Inflicted 18540 | . 589 330 . 117 1323 2257 963 243 91 477 713 604 . . 2091 1691 . 5698 . 1353 . Guns 6302 | . 397 61 . 117 1264 1178 18 . . . . . . . . . . 3267 . . . Cannons 2457 | . . . . . . . 161 . . . . . . . . . . 2296 . . . Explosions 2987 | . 192 269 . . 59 1075 . . . . . 475 . . 917 . . . . . . Melee 6778 | . . . . . . . 784 243 91 477 713 129 . . 1174 1691 . 123 . 1353 . Ramming 16 | . . . . . . 4 . . . . . . . . . . . 12 . . . Kinetic 5066 | . 103 61 . . 208 825 161 . . . . . . . . . . 3708 . . . Thermal 2684 | . 106 . . 117 1056 246 18 . . . . . . . . . . 1141 . . . Explosive 2213 | . 86 269 . . 59 407 . . . . . 475 . . 917 . . . . . . Electromagnetic 1783 | . 294 . . . . 775 . . . . . . . . . . . 714 . . . Impact 2114 | . . . . . . . . . . . 647 129 . . 235 980 . 123 . . . Slashing 3311 | . . . . . . . 784 243 91 477 66 . . . 939 711 . . . . . Piercing 1353 | . . . . . . . . . . . . . . . . . . . . 1353 . Highest Corruption 16 | . . . . . 1 1 16 16 16 . . . . . . . . 14 13 8 8 Average Corruption 9 | . . . . . 1 1 14 16 16 . . . . . . . . 11 13 4 8 Corruption Purged 1 | . . . . . 1 . . . . . . . . . . . . . . . . Corruption Blocked . | . . . . . . . . . . . . . . . . . . . . . . Effects 121 | . . . . . 3 8 27 10 1 . . . . . . . . 44 17 6 5 Message Errors 32 | . . . . . . 2 5 3 . . . . . . . . . 11 7 2 2 Matter Fused 28 | . . . . . 1 2 9 2 . . . . . . . . . 13 1 . . Heat Flow Errors 13 | . . . . . . . 4 2 . . . . . . . . . 4 1 1 1 Energy Discharges 16 | . . . . . 1 1 4 . . . . . . . . . . 5 3 1 1 Parts Rejected 2 | . . . . . . . . 1 . . . . . . . . . 1 . . . Parts Fused 1 | . . . . . . . . . . . . . . . . . . . 1 . . Data Loss (minor) 12 | . . . . . 1 1 3 . 1 . . . . . . . . 2 2 1 1 Data Loss (major) 4 | . . . . . . . 1 1 . . . . . . . . . 1 . 1 . Misfires 3 | . . . . . . 1 . . . . . . . . . . . 2 . . . Alerts 3 | . . . . . . . . . . . . . . . . . . 2 1 . . Misdirections 2 | . . . . . . . . 1 . . . . . . . . . . 1 . . Weapon Failures 5 | . . . . . . 1 1 . . . . . . . . . . 3 . . . Overload Shots . | . . . . . . . . . . . . . . . . . . . . . . Overflow Damage 2069 | . . 10 . . . 46 126 104 84 . 388 127 . . 358 312 . 150 . 364 . Projectiles 121 | . . . . . . . 24 . . . . . . . . . . 97 . . . Explosions 91 | . . 10 . . . 46 . . . . . . . . 35 . . . . . . Melee 1857 | . . . . . . . 102 104 84 . 388 127 . . 323 312 . 53 . 364 . Knockbacks 18 | . . . . . . . 3 . . . . . . . . 8 . 7 . . . Impact 7 | . . . . . . . . . . . . . . . . 7 . . . . . Kinetic 10 | . . . . . . . 3 . . . . . . . . . . 7 . . . Secondary 1 | . . . . . . . . . . . . . . . . 1 . . . . . Self-Inflicted Damage 258 | . 39 35 . . 24 156 . . . . . . . . 4 . . . . . . Shots 11 | . 1 2 . . 1 6 . . . . . . . . 1 . . . . . . Rammed 1 | . . . . . . 1 . . . . . . . . . . . . . . . Targets Rammed 3 | . . . . . . 1 . . . . . . . . . . . 2 . . . Kicked 2 | . . . . . . . . . . . . . . . . . . 2 . . . Crushed . | . . . . . . . . . . . . . . . . . . . . . . Highest Temperature 536 | . 64 5 . . 15 366 259 260 . . . . . . 36 . 303 536 340 198 108 Average Temperature 77 | . 24 3 . . 6 128 73 113 . . . . . . 20 . 253 80 80 45 65 Received Heat Transfer 2641 | . 42 18 . 18 117 909 . . . 38 . 12 . 54 36 57 404 297 261 216 162 Effects 12 | . . . . . . 4 . . . . . . . . . . . 8 . . . Shutdowns 3 | . . . . . . 1 . . . . . . . . . . . 2 . . . Energy Bleed 1 | . . . . . . . . . . . . . . . . . . 1 . . . Interference 8 | . . . . . . 3 . . . . . . . . . . . 5 . . . Siege Activations 5 | . . . . . . . . . . . . . . . . . . 5 . . . Total Turns 105 | . . . . . . . . . . . . . . . . . . 105 . . . Longest Duration 46 | . . . . . . . . . . . . . . . . . . 46 . . . Robots Corrupted 1 | . . . . . . . . . . . . . . . . . . 1 . . . Combat Hostiles . | . . . . . . . . . . . . . . . . . . . . . . Parts Fried 21 | . 1 . . . . 2 . . . . 8 . . . 3 3 . 4 . . . Impact Corruptions 58 | . . . . . . . . . . . 32 6 . . 6 12 . 2 . . . Robots Melted . | . . . . . . . . . . . . . . . . . . . . . . Combat Hostiles . | . . . . . . . . . . . . . . . . . . . . . . Parts Melted 4 | . . . . . 1 . . . . . . . . . . . . 3 . . . Heat Transferred 3031 | . 100 . . 148 1332 300 37 . . . . . . . . . . 1114 . . . Parts Sabotaged 5 | . . . . . . . . . . . . . . 2 . . . . 2 . 1 Parts Stolen . | . . . . . . . . . . . . . . . . . . . . . . Parts Stripped . | . . . . . . . . . . . . . . . . . . . . . . Power Chain Reactions 5 | . 2 . . . . 3 . . . . . . . . . . . . . . . Alert | -11 -10 -10 -10 -9 -8 -8 -7 -7 -7 -6 -6 -6 -6 -5 -5 -4 -4 -3 -3 -2 -2 ------- Run | Yrd Mat Min Exi Min Mat Sto Fac Low Low Fac Low Low Dat Pro Fac Fac Ext Res Arm Res Tes Peak Influence 1999 | . 352 295 . 69 572 867 332 . . 275 . . . . 499 295 142 471 363 444 1999 Initial 332 | . . 125 . . 26 241 332 . . 64 . . . . 59 148 82 53 171 190 146 Average 288 | . 166 222 . 1 296 601 139 . . 113 . . . . 398 207 100 248 216 306 1746 Maximum Alert Level 5 | . 1 1 . . 2 3 1 . . 1 . . . . 2 1 . 2 1 2 5 Low Security (%) 43 | 100 72 21 . 100 38 . 90 . . 85 . . . . 12 55 100 37 9 12 . Level 1 35 | . 27 78 . . 24 20 9 . . 14 . . . . 13 44 . 45 90 76 . Level 2 15 | . . . . . 37 41 . . . . . . . . 74 . . 17 . 11 . Level 3 3 | . . . . . . 38 . . . . . . . . . . . . . . . Level 4 . | . . . . . . . . . . . . . . . . . . . . . . Level 5 . | . . . . . . . . . . . . . . . . . . . . . . High Security . | . . . . . . . . . . . . . . . . . . . . . . Max Security 2 | . . . . . . . . . . . . . . . . . . . . . 99 Squads Dispatched 62 | . 2 . . 1 4 6 9 . . 2 . . . 1 1 3 . 9 5 6 13 Investigation 20 | . 1 . . . 2 2 5 . . 1 . . . . . 1 . 1 3 4 . Extermination 7 | . . . . . . . 2 . . . . . . . . 1 . 3 . 1 . Reinforcement 17 | . 1 . . . 2 4 2 . . . . . . . 1 1 . 2 2 1 1 Assault 16 | . . . . 1 . . . . . 1 . . . 1 . . . 1 . . 12 Garrison 2 | . . . . . . . . . . . . . . . . . . 2 . . . Intercept . | . . . . . . . . . . . . . . . . . . . . . . Searches Triggered . | . . . . . . . . . . . . . . . . . . . . . . Data Miner Redirects 4 | . . . . . . . . . . . . . . . . . . . 3 1 . Construction Impeded 2 | . . . . . 1 1 . . . . . . . . . . . . . . . Haulers Reinforced 2 | . . . . . . . . . . . . . . . . 1 . 1 . . . Active Scanning Responses . | . . . . . . . . . . . . . . . . . . . . . . Cargo Convoy Interrupts . | . . . . . . . . . . . . . . . . . . . . . . Stealth | -11 -10 -10 -10 -9 -8 -8 -7 -7 -7 -6 -6 -6 -6 -5 -5 -4 -4 -3 -3 -2 -2 --------- Run | Yrd Mat Min Exi Min Mat Sto Fac Low Low Fac Low Low Dat Pro Fac Fac Ext Res Arm Res Tes Distress Signals 17 | . . . . . . 2 . . . . . . . 5 1 . . 1 2 3 3 Communications Jammed . | . . . . . . . . . . . . . . . . . . . . . . Distress Signals . | . . . . . . . . . . . . . . . . . . . . . . Times Spotted 338 | . 13 5 . 6 29 39 12 3 . 2 4 7 . 11 11 8 4 41 26 55 62 Peak Tracking Total 50 | . 3 3 . 2 7 10 4 3 . 1 3 5 . 8 5 5 5 14 17 17 50 Tactical Retreats 38 | . . . . 2 . 2 1 . . . 1 2 . 2 1 2 . 2 6 9 8 Traps | -11 -10 -10 -10 -9 -8 -8 -7 -7 -7 -6 -6 -6 -6 -5 -5 -4 -4 -3 -3 -2 -2 ------- Run | Yrd Mat Min Exi Min Mat Sto Fac Low Low Fac Low Low Dat Pro Fac Fac Ext Res Arm Res Tes Traps Triggered 15 | . 2 . . . 1 2 1 . . . . . . . 2 1 . 2 1 2 1 Indirectly . | . . . . . . . . . . . . . . . . . . . . . . Trap Hack Attempts . | . . . . . . . . . . . . . . . . . . . . . . Triggered . | . . . . . . . . . . . . . . . . . . . . . . Disarmed . | . . . . . . . . . . . . . . . . . . . . . . Reprogrammed . | . . . . . . . . . . . . . . . . . . . . . . Reused . | . . . . . . . . . . . . . . . . . . . . . . Traps Extracted . | . . . . . . . . . . . . . . . . . . . . . . Installed . | . . . . . . . . . . . . . . . . . . . . . . Triggered 1 | . . . . . . . . . 1 . . . . . . . . . . . . Machines | -11 -10 -10 -10 -9 -8 -8 -7 -7 -7 -6 -6 -6 -6 -5 -5 -4 -4 -3 -3 -2 -2 ---------- Run | Yrd Mat Min Exi Min Mat Sto Fac Low Low Fac Low Low Dat Pro Fac Fac Ext Res Arm Res Tes Machines Disabled 19 | . 2 1 . . 2 4 2 . . 1 . . . . 1 . 1 2 1 . 2 Max in Single Turn 1 | . 1 1 . . 1 1 1 . . 1 . . . . 1 . 1 1 1 . 1 Garrison Access 3 | . . . . . . . 1 . . 1 . . . . . . . 1 . . . Machines Repaired . | . . . . . . . . . . . . . . . . . . . . . . Machines Dismantled . | . . . . . . . . . . . . . . . . . . . . . . Machines Sabotaged . | . . . . . . . . . . . . . . . . . . . . . . Overloaded Fab Kills . | . . . . . . . . . . . . . . . . . . . . . . Hacking | -11 -10 -10 -10 -9 -8 -8 -7 -7 -7 -6 -6 -6 -6 -5 -5 -4 -4 -3 -3 -2 -2 --------- Run | Yrd Mat Min Exi Min Mat Sto Fac Low Low Fac Low Low Dat Pro Fac Fac Ext Res Arm Res Tes Machines Accessed 65 | . 1 . 3 . 5 6 13 1 . 4 . . 4 . 3 2 . 4 8 10 1 Terminals 35 | . . . . . 4 6 9 . . 1 . . . . 1 2 . 1 4 6 1 Fabricators 3 | . . . . . . . . . . . . . . . 1 . . . 2 . . Repair Stations 6 | . . . . . 1 . 1 . . 1 . . . . . . . 1 1 1 . Recycling Units 6 | . 1 . . . . . 1 . . 1 . . . . 1 . . . 1 1 . Scanalyzers 2 | . . . . . . . 1 . . . . . . . . . . 1 . . . Garrison Access 5 | . . . . . . . 1 . . 1 . . . . . . . 1 . 2 . Total Hacks 201 | . 1 . 14 . 18 13 42 1 . 6 . . 30 . 5 5 . 9 25 29 3 Successful 111 | . 1 . 14 . 9 7 21 1 . . . . 30 . 1 1 . 5 8 10 3 Failed 90 | . . . . . 9 6 21 . . 6 . . . . 4 4 . 4 17 19 . Catastrophic 20 | . . . . . . 3 3 . . 4 . . . . 1 1 . 2 2 4 . Database Lockouts . | . . . . . . . . . . . . . . . . . . . . . . Manual 59 | . 1 . 1 . 11 . 14 . . 2 . . . . 2 4 . 2 9 12 1 Terminals 105 | . . . . . 14 13 32 . . 2 . . . . 2 5 . 4 9 21 3 Fabricators 13 | . . . . . . . . . . . . . . . 2 . . . 11 . . Repair Stations 14 | . . . . . 4 . 3 . . 1 . . . . . . . 1 2 3 . Recycling Units 9 | . 1 . . . . . 2 . . 1 . . . . 1 . . . 3 1 . Scanalyzers 6 | . . . . . . . 3 . . . . . . . . . . 3 . . . Garrison Access 9 | . . . . . . . 2 . . 2 . . . . . . . 1 . 4 . Terminal Hacks 80 | . . . 14 . 2 7 9 1 . . . . 30 . . 1 . 2 2 9 3 Record 33 | . . . 13 . . 1 . . . . . . 11 . . 1 . 2 1 2 2 Part Schematic 11 | . . . . . . . . . . . . . 11 . . . . . . . . Robot Schematic 5 | . . . . . . . . . . . . . 5 . . . . . . . . Prototype ID Bank 5 | . . . . . 1 . 1 . . . . . 3 . . . . . . . . Open Door 4 | . . . . . . 2 . 1 . . . . . . . . . . 1 . . Open DSF 1 | . . . . . . . 1 . . . . . . . . . . . . . . Level Access Points 1 | . . . . . . . 1 . . . . . . . . . . . . . . Branch Access Points 2 | . . . . . . . 1 . . . . . . . . . . . . 1 . Terminal Index 1 | . . . . . . . . . . . . . . . . . . . . 1 . Alert Level 9 | . . . . . 1 2 3 . . . . . . . . . . . . 2 1 Unreport Threat 3 | . . . . . . . 1 . . . . . . . . . . . . 2 . Recall Investigation 1 | . . . . . . . . . . . . . . . . . . . . 1 . Zone Layout 3 | . . . . . . 2 1 . . . . . . . . . . . . . . Derelict Proto ID Bank 1 | . . . 1 . . . . . . . . . . . . . . . . . . Fabricator Hacks 3 | . . . . . . . . . . . . . . . . . . . 3 . . Network Status 1 | . . . . . . . . . . . . . . . . . . . 1 . . Load Schematic 1 | . . . . . . . . . . . . . . . . . . . 1 . . Build 1 | . . . . . . . . . . . . . . . . . . . 1 . . Repair Station Hacks 6 | . . . . . 4 . 2 . . . . . . . . . . . . . . Scan Component 3 | . . . . . 2 . 1 . . . . . . . . . . . . . . Repair 3 | . . . . . 2 . 1 . . . . . . . . . . . . . . Recycling Unit Hacks 5 | . . . . . . . 1 . . . . . . . 1 . . . 2 1 . Report Inventory 4 | . . . . . . . 1 . . . . . . . 1 . . . 1 1 . Retrieve Components 1 | . . . . . . . . . . . . . . . . . . . 1 . . Scanalyzer 3 | . . . . . . . 1 . . . . . . . . . . 2 . . . Insert Component 2 | . . . . . . . 1 . . . . . . . . . . 1 . . . Analyze 1 | . . . . . . . . . . . . . . . . . . 1 . . . Garrison Access Hacks 1 | . . . . . . . 1 . . . . . . . . . . . . . . Seal Access 1 | . . . . . . . 1 . . . . . . . . . . . . . . Unauthorized Hacks 13 | . 1 . . . 3 . 7 . . . . . . . . . . 1 1 . . Terminals 9 | . . . . . 3 . 6 . . . . . . . . . . . . . . Assimilate 1 | . . . . . . . 1 . . . . . . . . . . . . . . Botnet 8 | . . . . . 3 . 5 . . . . . . . . . . . . . . Fabricators 1 | . . . . . . . . . . . . . . . . . . . 1 . . Fabnet 1 | . . . . . . . . . . . . . . . . . . . 1 . . Repair Stations . | . . . . . . . . . . . . . . . . . . . . . . Recycling Units 2 | . 1 . . . . . 1 . . . . . . . . . . . . . . Tunnel 2 | . 1 . . . . . 1 . . . . . . . . . . . . . . Scanalyzers . | . . . . . . . . . . . . . . . . . . . . . . Garrison Access 1 | . . . . . . . . . . . . . . . . . . 1 . . . Jam 1 | . . . . . . . . . . . . . . . . . . 1 . . . Data Cores Recovered 2 | . 1 . . . 1 . . . . . . . . . . . . . . . . Used . | . . . . . . . . . . . . . . . . . . . . . . Hacking Detections 51 | . . . . . 5 5 11 . . 4 . . . . 3 2 . 3 7 10 1 Full Trace Events 16 | . . . . . 1 2 4 . . 1 . . . . . 1 . . 3 4 . Feedback Events 5 | . . . . . 1 . 2 . . . . . . . . . . . 1 1 . Corruption 2 | . . . . . 1 . 1 . . . . . . . . . . . . . . Hackware Fried 3 | . . . . . . . 1 . . . . . . . . . . . 1 1 . Feedback Blocked . | . . . . . . . . . . . . . . . . . . . . . . Robot Schematics Acquired 5 | . . . . . . . . . . . . . 5 . . . . . . . . Robots Built . | . . . . . . . . . . . . . . . . . . . . . . Authchips . | . . . . . . . . . . . . . . . . . . . . . . Time . | . . . . . . . . . . . . . . . . . . . . . . Total Robot Build Rating . | . . . . . . . . . . . . . . . . . . . . . . Part Schematics Acquired 12 | . . . . . . . . . . . . . 11 . . . . 1 . . . Parts Built 2 | . . . . . . . . . . . . . . . . . . . 2 . . Authchips . | . . . . . . . . . . . . . . . . . . . . . . Time 64 | . . . . . . . . . . . . . . . . . . . 64 . . Total Part Build Rating 16 | . . . . . . . . . . . . . . . . . . . 16 . . Parts Repaired 3 | . . . . . 2 . 1 . . . . . . . . . . . . . . Time 62 | . . . . . 32 . 30 . . . . . . . . . . . . . . Parts Recycled . | . . . . . . . . . . . . . . . . . . . . . . Recycled Matter . | . . . . . . . . . . . . . . . . . . . . . . Retrieved Matter . | . . . . . . . . . . . . . . . . . . . . . . Retrieved Components 3 | . . . . . . . . . . . . . . . . . . . 3 . . Parts Scanalyzed 1 | . . . . . . . . . . . . . . . . . . 1 . . . Part Schematics Acquired 1 | . . . . . . . . . . . . . . . . . . 1 . . . Parts Damaged . | . . . . . . . . . . . . . . . . . . . . . . Bothacking | -11 -10 -10 -10 -9 -8 -8 -7 -7 -7 -6 -6 -6 -6 -5 -5 -4 -4 -3 -3 -2 -2 ------------ Run | Yrd Mat Min Exi Min Mat Sto Fac Low Low Fac Low Low Dat Pro Fac Fac Ext Res Arm Res Tes Used RIF Installer . | . . . . . . . . . . . . . . . . . . . . . . Robots Hacked 7 | . . . . . . . . . . . . . . . . . . . . 3 4 Non-combat . | . . . . . . . . . . . . . . . . . . . . . . Combat 7 | . . . . . . . . . . . . . . . . . . . . 3 4 Robot Hacks Applied . | . . . . . . . . . . . . . . . . . . . . . . Relay Couplers Released 1 | . . . . . . . . . . 1 . . . . . . . . . . . Machine Destruction 1 | . . . . . . . . . . 1 . . . . . . . . . . . Fabnet Peak Effective % 3 | . . . . . . . . . . . . . . . . . . . . 3 3 Autooverrided 7 | . . . . . . . . . . . . . . . . . . . . 3 4 Robots Rewired . | . . . . . . . . . . . . . . . . . . . . . . Allies Hacked . | . . . . . . . . . . . . . . . . . . . . . . Hacks Repelled . | . . . . . . . . . . . . . . . . . . . . . . Allies | -11 -10 -10 -10 -9 -8 -8 -7 -7 -7 -6 -6 -6 -6 -5 -5 -4 -4 -3 -3 -2 -2 -------- Run | Yrd Mat Min Exi Min Mat Sto Fac Low Low Fac Low Low Dat Pro Fac Fac Ext Res Arm Res Tes Total Allies 9 | . . . . 1 . . . . . . . . . 1 . . . . . 3 4 Largest Group 1 | . . . . 1 1 . . . . . . . . 1 . . . . . 1 1 Highest-Rated Group 96 | . . . . 31 31 . . . . . . . . 96 . . . . . 58 64 Highest-Rated Ally 96 | . . . . 31 31 . . . . . . . . 96 . . . . . 58 64 Total Orders 2 | . . . . . . . . . . . . . . . . . . . . . 2 EXPLORE 2 | . . . . . . . . . . . . . . . . . . . . . 2 Ally Attacks 27 | . . . . . 18 . . . . . . . . 3 . . . . . 4 2 Total Damage 549 | . . . . . 185 . . . . . . . . 138 . . . . . 116 110 Kills 2 | . . . . . 2 . . . . . . . . . . . . . . . . Allies Corrupted . | . . . . . . . . . . . . . . . . . . . . . . Allies Melted . | . . . . . . . . . . . . . . . . . . . . . . Intel | -11 -10 -10 -10 -9 -8 -8 -7 -7 -7 -6 -6 -6 -6 -5 -5 -4 -4 -3 -3 -2 -2 ------- Run | Yrd Mat Min Exi Min Mat Sto Fac Low Low Fac Low Low Dat Pro Fac Fac Ext Res Arm Res Tes Robot Analysis Total . | . . . . . . . . . . . . . . . . . . . . . . Derelict Logs Recovered 7 | . . 2 . 2 . . . 1 . . 1 1 . . . . . . . . . Drone Launches 2 | . . . . . . . . . . . . . . . . . . . . . 2 Drone Recoveries 2 | . . . . . . . . . . . . . . . . . . . . . 2 Exploration | -11 -10 -10 -10 -9 -8 -8 -7 -7 -7 -6 -6 -6 -6 -5 -5 -4 -4 -3 -3 -2 -2 ------------- Run | Yrd Mat Min Exi Min Mat Sto Fac Low Low Fac Low Low Dat Pro Fac Fac Ext Res Arm Res Tes Turns Passed 9630 | 62 373 286 508 607 618 653 949 231 23 194 380 341 40 218 415 513 59 1735 488 716 221 Spaces Moved 11071 | 61 279 262 528 598 507 359 1496 441 46 302 428 383 79 406 418 472 113 983 894 1468 548 Core 43 | 2 . . . . . . . . . . . . . . . . . 40 . . 1 Treads 654 | . . . . . . 128 . . . . . . . . . . . 526 . . . Legs 92 | . . . . . . . . . . . . . . . . . . 92 . . . Wheels 2338 | 59 279 262 528 598 507 105 . . . . . . . . . . . . . . . Hover 4870 | . . . . . . 126 1496 441 46 302 428 383 79 406 418 472 113 148 . 12 . Flight 3074 | . . . . . . . . . . . . . . . . . . 177 894 1456 547 Fastest Speed 19 | 50 80 95 80 95 100 100 38 40 40 40 43 51 51 51 51 50 50 32 23 19 20 Average Speed 63 | 79 86 95 94 99 100 126 39 41 40 43 75 81 51 51 68 51 50 124 31 21 29 Slowest Speed 400 | 80 95 110 95 100 100 240 43 105 40 105 170 106 51 106 110 52 61 270 105 110 400 Overloaded Moves 1 | . . . . . . . . . . . . . . . . . . . . 1 . Propulsion Burnouts . | . . . . . . . . . . . . . . . . . . . . . . Robots Hopped 31 | . . . . . . . . . . . . . . . . . . 2 5 9 15 Cave-ins Triggered 1 | . . . . . . . 1 . . . . . . . . . . . . . . Exploration Rate (%) 44 | 4 54 52 92 90 49 59 41 63 10 6 73 47 68 60 11 16 27 23 43 41 59 Regions Visited 21 Branch Regions 13 Pre-discovered Areas 4 | . 1 . 1 . . . 1 . . . . . 1 . . . . . . . . Known Exits Taken 12 | . . . . . . 1 1 . 1 1 1 1 1 1 1 1 1 . . 1 . Unknown Exits Taken 9 | 1 1 1 1 1 1 . . 1 . . . . . . . . . 1 1 . . Scrap Searched 7 | . . 1 . 2 . . . 2 . . 2 . . . . . . . . . . Spaces Dug 124 | . . . . . . . 31 2 . 4 1 6 . . . 11 . 1 8 58 2 Terrain Destroyed 396 | . 12 37 . 3 37 38 32 2 . 4 1 47 . . 86 11 . 18 8 58 2 Melee 124 | . . . . . . . 31 2 . 4 1 6 . . . 11 . 1 8 58 2 Projectile 29 | . . . . 3 8 . 1 . . . . . . . . . . 17 . . . AOE 243 | . 12 37 . . 29 38 . . . . . 41 . . 86 . . . . . . Terrain Rammed . | . . . . . . . . . . . . . . . . . . . . . . Walls Destroyed . | . . . . . . . . . . . . . . . . . . . . . . Machines Disabled . | . . . . . . . . . . . . . . . . . . . . . . Actions | -11 -10 -10 -10 -9 -8 -8 -7 -7 -7 -6 -6 -6 -6 -5 -5 -4 -4 -3 -3 -2 -2 --------- Run | Yrd Mat Min Exi Min Mat Sto Fac Low Low Fac Low Low Dat Pro Fac Fac Ext Res Arm Res Tes Total 12871 | 71 343 283 538 612 603 479 1780 475 48 346 457 402 78 413 500 687 113 1304 1070 1685 584 Wait 706 | 1 5 1 . 5 44 8 154 8 2 1 7 . . 2 12 135 . 102 113 88 18 Move 10997 | 60 278 261 527 597 506 358 1495 440 45 301 427 382 78 405 417 471 112 978 885 1449 525 Hop 22 | . . . . . . . . . . . . . . . . . . 2 3 9 8 Pick Up 133 | 4 4 3 4 3 12 9 16 6 . 4 1 . . . 8 10 . 34 6 7 2 Fast Attach 149 | 6 7 . . . 6 8 12 1 . 8 . 1 . 3 13 7 . 27 16 25 9 Attach 90 | . 1 1 1 . 6 10 8 3 . 2 2 3 . 1 5 3 . 25 3 10 6 Detach 52 | . 3 . 1 . . 5 6 . . 2 . 5 . 1 2 2 . 9 3 7 6 Swap 52 | . 4 5 . 2 3 4 9 1 . 2 . 1 . . 5 2 . 9 3 2 . Drop 138 | . 4 2 4 5 11 6 18 4 . 9 . . . . 12 11 . 27 10 10 5 Fire 242 | . 37 10 . . 15 70 11 . . . . 3 . 1 8 . . 87 . . . Melee 269 | . . . . . . . 51 12 1 17 20 7 . . 18 46 1 2 11 78 5 Ram . | . . . . . . . . . . . . . . . . . . . . . . Kick 2 | . . . . . . . . . . . . . . . . . . 2 . . . Crush 1 | . . . . . . 1 . . . . . . . . . . . . . . . Escape Stasis 17 | . . . . . . . . . . . . . . . . . . . 17 . . Rewire 1 | . . . 1 . . . . . . . . . . . . . . . . . . Trap . | . . . . . . . . . . . . . . . . . . . . . . Miscellaneous . | . . . . . . . . . . . . . . . . . . . . . . Route ------- -11/Scrapyard -10/Materials (discovered 2 exits: [*Mat] / [*Min]) -10/Mines (discovered 2 exits: [*Mat] / *Exi) -10/Exiles -9/Mines -8/Materials (discovered 3 exits: *Fac x2 / *Sto) -8/Storage -7/Factory (discovered 6 exits: *Fac x4 / *Low x2) -7/Lower Caves -7/Lower Caves -6/Factory -6/Lower Caves -6/Lower Caves (discovered 2 exits: Fac / *Dat) -6/Data Miner -5/Proximity Caves -5/Factory (discovered 3 exits: *Fac x2 / Upp) -4/Factory -4/Extension -3/Research -3/Armory -2/Research (discovered 2 exits: *Tes x2) -2/Testing History --------- Turn | Location | Event 20 | -11/Scrapyard | Discovered new exit (range 12) 63 | -11/Scrapyard | Entered Materials 206 | -10/Materials | Discovered new exit (range 6) 300 | -10/Materials | Build established: Mutant 409 | -10/Materials | Discovered new exit (range 16) 419 | -10/Materials | Lost 3 parts (1p1u1w) 436 | -10/Materials | Entered Mines 456 | -10/Mines | Learned Materials garrison access intel 584 | -10/Mines | Found a damaged Exp. Sensor Array with a note attached 586 | -10/Mines | Found Prototype Device 594 | -10/Mines | Identified Exp. Sensor Array 623 | -10/Mines | Discovered new exit (range 13) 658 | -10/Mines | Learned Materials terminal intel 705 | -10/Mines | Found a hidden stash of uninstalled traps 719 | -10/Mines | Deemed a non-threat by the Exiles lab entrance 719 | -10/Mines | Discovered new exit (range 5) 722 | -10/Mines | Entered Exiles 746 | -10/Exiles | Met 8R-AWN 761 | -10/Exiles | Met EX-HEX 807 | -10/Exiles | Met EX-DEC 814 | -10/Exiles | Learned location of Zion (-7) 837 | -10/Exiles | Met EX-BIN 855 | -10/Exiles | Aligned with FarCom system 856 | -10/Exiles | Given EX-Vault access code 894 | -10/Exiles | Opened EX-Vault 917 | -10/Exiles | Found AWS/Thermal 941 | -10/Exiles | Warned to stay clear of 0b10 Research branches 1058 | -10/Exiles | Visited The Gauntlet 1218 | -10/Exiles | Discovered new exit (range 14) 1230 | -10/Exiles | Left Exiles lab with AWS/Thermal 1230 | -10/Exiles | Entered Mines 1231 | -9/Mines | Assembled infested the area 1239 | -9/Mines | Learned 8 Materials zone layouts 1486 | -9/Mines | Learned location of 1 exit from Materials 1679 | -9/Mines | Met a Derelict testing a Signal Generator 1830 | -9/Mines | Discovered new exit (range 5) 1837 | -9/Mines | Entered Materials 1837 | -8/Materials | Accompanied by 1 ally 1837 | -8/Materials | Evolved 4 slots: Utility x4 1838 | -8/Materials | Identified exit to Factory 1840 | -8/Materials | Loaded intel: 12 terminal locations 1841 | -8/Materials | Loaded intel: 1 garrison access location 2131 | -8/Materials | Build established: Skirmisher 2329 | -8/Materials | Repaired Imp. Terrain Scanner 2343 | -8/Materials | Repaired Grenade Launcher 2418 | -8/Materials | Discovered new exit (range 13) 2455 | -8/Materials | Entered Storage 2697 | -8/Storage | Lost 5 parts (1p2u2w) 2704 | -8/Storage | Destroyed 16 combat bots 3100 | -8/Storage | Discovered exit to Factory (range 9) 3108 | -8/Storage | Entered Factory 3108 | -7/Factory | Evolved 2 slots: Propulsion x2 3352 | -7/Factory | Identified exit to DSF 3402 | -7/Factory | Build established: Hacker-Mutant 3478 | -7/Factory | Crushed by falling debris 3478 | -7/Factory | System corruption reached 10% 3509 | -7/Factory | Lost 3 parts (3u) 3521 | -7/Factory | Repaired Aerolev Unit 3572 | -7/Factory | Identified exit to Factory 3644 | -7/Factory | Hacking Suite fried by hacking feedback 3812 | -7/Factory | Identified exit to Lower Caves 4045 | -7/Factory | Build established: Scout 4057 | -7/Factory | Entered Lower Caves 4069 | -7/Lower Caves | Learned Factory stockpile data 4176 | -7/Lower Caves | Lost 3 parts (1n2u) 4263 | -7/Lower Caves | Discovered new exit (range 15) 4288 | -7/Lower Caves | Entered another Lower Caves area 4301 | -7/Lower Caves | Discovered exit to Factory (range 10) 4311 | -7/Lower Caves | Entered Factory 4311 | -6/Factory | Evolved 2 slots: Utility x2 4484 | -6/Factory | Discovered new exit (range 16) 4491 | -6/Factory | Identified exit to Lower Caves 4505 | -6/Factory | Entered Lower Caves 4558 | -6/Lower Caves | Learned 8 Factory zone layouts 4650 | -6/Lower Caves | Lost 5 parts (1p3n1u) 4806 | -6/Lower Caves | Build established: Gladiator 4846 | -6/Lower Caves | Discovered new exit (range 6) 4851 | -6/Lower Caves | Identified exit to Lower Caves 4885 | -6/Lower Caves | Entered another Lower Caves area 5015 | -6/Lower Caves | Spotted B-75 Beast 5201 | -6/Lower Caves | Identified exit to Factory 5209 | -6/Lower Caves | Discovered new exit (range 14) 5225 | -6/Lower Caves | Identified exit to Data Miner 5226 | -6/Lower Caves | Entered Data Miner 5226 | -6/Data Miner | Discovered new exit (range 6) 5236 | -6/Data Miner | Met Data Miner 5249 | -6/Data Miner | Learned location of Section 7 (-2) 5249 | -6/Data Miner | Acquired the access code to Warlord's prototype stash 5253 | -6/Data Miner | Received God Mode back door access code from Data Miner 5266 | -6/Data Miner | Identified exit to Proximity Caves 5266 | -6/Data Miner | Entered Proximity Caves 5378 | -5/Proximity Caves | Attracted the attention of an 0b10 outpost 5419 | -5/Proximity Caves | Build established: Mutant 5449 | -5/Proximity Caves | Escorted by Enhanced Grunt 5474 | -5/Proximity Caves | Discovered exit to Factory (range 9) 5484 | -5/Proximity Caves | Entered Factory 5484 | -5/Factory | Evolved 2 slots: Utility x2 5485 | -5/Factory | Identified exit to Factory 5485 | -5/Factory | Identified exit to Upper Caves 5696 | -5/Factory | Discovered exit to Factory (range 8) 5899 | -5/Factory | Entered another Factory area 5899 | -4/Factory | Evolved 2 slots: Propulsion x2 6365 | -4/Factory | Build established: Gladiator 6366 | -4/Factory | Discovered new exit (range 8) 6369 | -4/Factory | Identified exit to Extension 6412 | -4/Factory | Entered Extension 6434 | -4/Extension | Disrupted transfer network 6461 | -4/Extension | Spotted B-86 Titan 6466 | -4/Extension | Spotted B-86 Titan 6471 | -4/Extension | Discovered new exit (range 3) 6471 | -4/Extension | Identified exit to Research 6471 | -4/Extension | Entered Research 6471 | -3/Research | Evolved 2 slots: Power x1, Weapon x1 6502 | -3/Research | Lost 4 parts (2n1u1w) 6817 | -3/Research | Build established: Gunner 6986 | -3/Research | Garrison activated, responded to threat 7037 | -3/Research | System corruption reached 10% 7221 | -3/Research | First assault squad dispatched 7477 | -3/Research | Lost 3 parts (1p2w) 7868 | -3/Research | Lost 3 parts (2n1u) 7918 | -3/Research | Lost 3 parts (1n2w) 7989 | -3/Research | Lost 3 parts (1p1u1w) 8094 | -3/Research | Core integrity fell below 50% 8166 | -3/Research | Lost 12 parts (2p7n2u1w) 8204 | -3/Research | Discovered new exit (range 7) 8206 | -3/Research | Entered Armory 8241 | -3/Armory | Incoming investigation squad redirected 8285 | -3/Armory | Fabricated Mic. Antimatter Reactor? 8450 | -3/Armory | Found Enh. Force Lance 8462 | -3/Armory | Found Enh. Force Lance 8560 | -3/Armory | Core integrity fell below 20% 8618 | -3/Armory | Lost 7 parts (5n2u) 8636 | -3/Armory | Imp. System Shield fried by hacking feedback 8658 | -3/Armory | Incoming investigation squad redirected 8666 | -3/Armory | Incoming investigation squad redirected 8692 | -3/Armory | Discovered new exit (range 4) 8694 | -3/Armory | Entered Research 8694 | -2/Research | Evolved 2 slots: Utility x2 8759 | -2/Research | Identified exit to Testing 8866 | -2/Research | Found Prototype Device 8866 | -2/Research | Identified Thermal Barrier 8872 | -2/Research | Found Thermal Barrier 9086 | -2/Research | Lost 5 parts (1p1n3u) 9104 | -2/Research | System Shield fried by hacking feedback 9269 | -2/Research | Spotted B-90 Cyclops 9286 | -2/Research | Spotted B-90 Cyclops 9336 | -2/Research | Incoming investigation squad redirected 9356 | -2/Research | Lost 10 parts (2p5n3u) 9372 | -2/Research | Core integrity fell below 50% 9377 | -2/Research | Spotted B-90 Cyclops 9410 | -2/Research | Entered Testing 9411 | -2/Testing | Maximum security lockdown engaged 9438 | -2/Testing | Lost 4 parts (2n2u) 9470 | -2/Testing | Found Prototype Processor 9470 | -2/Testing | Identified Exp. Signal Interpreter 9545 | -2/Testing | Spotted Alpha 7 9572 | -2/Testing | Spotted Striker 9574 | -2/Testing | Spotted Striker 9581 | -2/Testing | Stole the SGEMP Prototype 9587 | -2/Testing | Core integrity fell below 20% 9612 | -2/Testing | Local machine network offline 9631 | -2/Testing | Destroyed by Striker with Plasma Lance Last Messages --------------- 09582_ Penetrated by Slug. 09582_ Hacking Suite destroyed. 09582_ Penetrated by Slug. 09582_ Machine disabled. 09583_ Acquired 20 matter. 09586_ Armor Integrity Analyzer destroyed. 09586_ Slug penetrates Earth. 09592_ Acquired 80 matter. 09592_ Acquired 50 matter. 09598_ C-30 ARC bursts open, deploying its payload. 09598_ G-73 Enforcer unfolds itself. 09598_ B-74 Champion unfolds itself. 09598_ I-47 Archangel unfolds itself. 09608_ Adv. Terrain Scan Processor destroyed. 09611_ ALERT: Assault forces dispatched. 09612_ ALERT: Suspected network compromise, local machines offline for diagnostic review. 09617_ Gravmag Array destroyed. 09619_ System corrupted: Energy discharge (-28). 09631_ Critical hit (Impale). Map ----- +----------------------------------------------------+ | ??# """"""" #???# #????????????????????????? | | ??# """"""" #???# #????????????????????????? | | ??# #???# #????????????????????????? | | ########+#######???# #????????????????????????? | | """"" #????????# #????????????????????????? | | ""T"" ! #????????# #????????????????????????? | | #????????# #????????????????????????? | | ########## #????????????????????????? | | """"" # # #????????????????????????? | | """"" # """""" # #????????????????????????? | | """"" # """""" # w #????????????????????????? | | # """""" # #????????????????????????? | | """"" # + #????????????????????????? | | """"" ! # gg # ##############???????????? | | """"" + "" """ # # #???????????? | | # ""F""" # # #???????????? | | """"" # """"" # # !!! ####????????? | | """"" g########## # !! ""#????????? | | """"" C g gg K # ! ""#????????? | | g g # """"" S"#????????? | | """"" g s """"" """#????????? | | """"" gg # """"" """#????????? | | """"" i###############s """#????????? | | h#?????????????#ss" " ####????????? | | """"" #?????????????#K""R"" #???????????? | | """"" h ?????????#@""""" #???????????? | | """"" ??????#;#############???????????? | | ???##????????????????????????? | | ?????????????????????????????? | | ######+##########?????????????????????????????? | | #?????????????????????????????????????????????? | | #?????????????????????????????????????????????? | | #?????????????????????????????????????????????? | | #?????????????????????????????????????????????? | | #?????????????????????????????????????????????? | | #?????????????????????????????????????????????? | | ####?????????????????????????????????????????????? | | ?????????????????????????????????????????????????? | | ?????????????????????????????????????????????????? | | ?????????????????????????????????????????????????? | | ?????????????????????????????????????????????????? | | ?????????????????????????????????????????????????? | | ?????????????????????????????????????????????????? | | ?????????????????????????????????????????????????? | | ?????????????????????????????????????????????????? | | ?????????????????????????????????????????????????? | | ?????????????????????????????????????????????????? | | ?????????????????????????????????????????????????? | | | | | +----------------------------------------------------+ Best States ------------- Heat Dissipation 84 Energy Generation 43 Energy Capacity 580 Matter Stores 300 Matter Capacity 300 Sight Range 20 Robot Scan Range 20 Terrain Scan Range 16 Terrain Scan Density 410 ECM Strength 1 Jamming Range 12 Cloak Strength 3 Power Amplification 20 Corruption Containment 12 Armor Coverage 600 Resistance: TH 25 Resistance: EM 25 Power Shielding 66 Utility Shielding 90 Melee Speed Boost 20 Phase Shifting 15 Evasion (%) 79 Targeting Accuracy 12 Melee Accuracy 8 Launcher Accuracy 40 Target Analysis 12 Core Analysis 6 Armor Integrity Analysis 30 Recoil Reduction 6 Energy Filtering 30 Kinecelleration 30 Offensive Hacking 48 Defensive Hacking 12 Authchip Count 1 Item Schematics ----------------- Combat Drone Bay | -6/Data Miner | Free Lgt. Regenerative Plating | -6/Data Miner | Free Cld. Nuclear Pulse Thruster | -6/Data Miner | Free Prc. Energy Filter | -6/Data Miner | Free Cld. Plasma Rifle | -6/Data Miner | Free Hvy. Siege Treads | -6/Data Miner | Free Imp. Force Field | -6/Data Miner | Free Hvy. Disruptor Cannon | -6/Data Miner | Free Matter Neutralizer | -6/Data Miner | Free KE Penetrator | -6/Data Miner | Free Mic. Antimatter Reactor | -6/Data Miner | Free Exp. Utility Shielding | -3/Research | Scanalyzed Robot Schematics ------------------ I-47 Archangel | -6/Data Miner | Free A-15 Conveyor | -6/Data Miner | Free S-27 Virus | -6/Data Miner | Free M-22 Extractor | -6/Data Miner | Free G-67 Veteran | -6/Data Miner | Free Fabricated ------------ Mic. Antimatter Reactor | x2 | -3/Armory Alien Tech Used ----------------- None Achievements -------------- None Challenges ------------ None Game ------ Seed ProtonSubatomicMonowheel Manual? 0 Play Time 01:46:40 Cumulative 89.0 hours Start 2024.07.22 @ 17:34:55 End 2024.07.22 @ 23:39:59 Sessions 3 Manual Loads 0 Difficulty Rogue Special Mode None Game No. 99 Rogue 99 Adventurer 0 Explorer 0 Win Type - Total 1 Types 1/0/0/0/0/0/0/0/0 Lore% 55 Gallery% 61 Achievement% 42 Wizard Run 0 Options --------- Layout 0 ASCII 0 Keyboard 1 Movement Numpad Keybinds 0 Fullscreen 2 Font 18/SmallcapsGlow Map View 76x50 Zoom Use 0% Tactical HUD 1 Map Filters NONE Filters NONE Steam 1 RUN: 53fb3d7a-2fe1-4770-ad72-64ddd00a4932